Workbook

Sheet 600m
A4: P&L Kategória | B4: 2025-01-01 | C4: 2025-02-01 | D4: 2025-03-01 | E4: 2025-04-01 | F4: 2025-05-01 | G4: 2025-06-01 | H4: 2025-07-01 | I4: 2025-08-01 | J4: 2025-09-01 | K4: 2025-10-01 | L4: 2025-11-01 | M4: 2025-12-01 | N4: Tervezett | O4: v5-höz képest változás
A6: (+) Létesítmények bérbeadásának árbevétele | B6: 9509532 | C6: 3923086 | D6: 4690859 | E6: 5610784 | F6: =SUM(F7:F10) -> 3771124.327 | G6: 2899434.66 | H6: 1124695.27 | I6: 1939846.11 | J6: 6876225.437 | K6: 6674025.243 | L6: =SUM(L7:L10) -> 7044399.743 | M6: 5241414.691 | N6: =IF(ISBLANK(B6),"",SUM(B6:M6)) -> 59305426.48
A7: VM71 - műfüves pálya | B7: 491339 | C7: 1499212 | D7: 1255622 | E7: 773386 | F7: 350710.168 | G7: 1267194.474 | H7: 484136.627 | I7: 168220.336 | J7: 1563052.122 | K7: 1564524.58 | L7: 1715997.784 | M7: 900344.2002 | N7: =IF(ISBLANK(B7),"",SUM(B7:M7)) -> 12033739.29 | O7: 09. hótól havi +1,582 m a KLIK bérleti díja miatt, de csak havi +1 m-val számolok, decemberre 500e
A8: Meredek utca - műfüves pálya | B8: 352755 | C8: 299211 | D8: 478738 | E8: 218897 | F8: 148691.512 | G8: 200010.367 | H8: 170397.237 | I8: 173108.886 | J8: 720010.367 | K8: 742120.535 | L8: 756741.8834 | M8: 458538.5948 | N8: 4719220.382 | O8: 09. hótól havi +791e a KLIK bérleti díja miatt, de csak havi +5e-rel számolok, decemberre 250e
A9: VM29 - tornaterem | B9: 2195912.64 | C9: 1992379.64 | D9: 2446262.64 | E9: 1824800.64 | F9: 2926356.979 | G9: 1194311.484 | H9: 414438.108 | I9: 1547351.636 | J9: 2667300.416 | K9: 2593381.701 | L9: 2471775.366 | M9: 2007699.541 | N9: 24281970.79
A10: Kiss János altb. -tornaterem | B10: 6469525.36 | C10: 132283.36 | D10: 510236.36 | E10: 2793700.36 | F10: 345365.6676 | G10: 237918.3352 | H10: 55723.298 | I10: 51165.252 | J10: 1925862.532 | K10: 1773998.427 | L10: 2099884.709 | M10: 1874832.355 | N10: 18270496.02
A12: tábori szállás, ellátás bevételek | B12: 0 | C12: 0 | D12: 0 | E12: 138583 | F12: =SUM(F13:F15) -> 2139603.8 | G12: 1895218 | H12: 7542326.65 | I12: 8336485.35 | J12: 1042232.6 | K12: 0 | L12: =SUM(L13:L15) -> 0 | M12: 0 | N12: 21094449.4
A13: Szántód - szállás | B13: 0 | C13: 0 | D13: 0 | E13: 138583 | F13: 200000 | G13: 1022000 | H13: 6500000 | I13: 7800000 | J13: 1000000 | K13: 0 | N13: 16660583 | O13: 06.13-ai foglaltság alapján várható bevétel +4 m
A14: Szigetszentmárton - szállás | B14: 0 | C14: 0 | D14: 0 | E14: 0 | F14: 0 | G14: 379993.35 | H14: 797530.75 | I14: 463505.2 | J14: 42232.6 | K14: 0 | N14: 1683261.9
A15: Mátyás tábor | B15: 0 | C15: 0 | D15: 0 | E15: 0 | F15: 1939603.8 | G15: 493224.65 | H15: 244795.9 | I15: 72980.15 | J15: 0 | K15: 0 | N15: 2750604.5
A17: (+) Úszásoktatási közfeladat árbevétele | B17: 1751300 | C17: 1572550 | D17: 1713600 | E17: 1180800 | F17: 2224950 | G17: 267540 | H17: 0 | I17: 0 | J17: 2185400 | K17: 2297050 | L17: 2241225 | M17: 1344735 | N17: 16779150
A19: (+) Uszoda vállalkozási árbevétele | B19: 1925581 | C19: 1846289 | D19: 1881139 | E19: 1391852 | F19: 1679369.2 | G19: 1075861.8 | H19: 1199310.17 | I19: 699310.17 | J19: 1898108.1 | K19: 1488696.85 | L19: 2193402.475 | M19: 1513447.708 | N19: 18792367.47 | O19: szeptemberre 1 m-val kevesebb tervezett bevétel
A21: (+) Úszóiskola árbevétele | B21: 5795274 | C21: 4342524 | D21: 6253942 | E21: 4926776 | F21: 5475979 | G21: 2165747 | H21: 287402 | I21: 29922 | J21: 6167326 | K21: 6057484 | L21: 6112405 | M21: 3667443 | N21: =IF(ISBLANK(B21),"",SUM(B21:M21)) -> 51282224 | O21: első 4 hónap alapján májusra 1 m-val kevesebb tervezett bevétel
A23: (+) Közvetített szolgáltatás árbevétele | B23: 4401605 | C23: 783197 | D23: 3516748.94 | E23: 1729196.57 | F23: =SUM(F24:F30) -> 6219291.65 | G23: =SUM(G24:G30) -> 5146781.45 | H23: 3853510.95 | I23: 3407327.15 | J23: 1160959 | K23: 1159859 | L23: 937567.2 | M23: =SUM(M24:M30) -> 691821.8 | N23: 33007865.71
A24: Mátyás - közmű | B24: 0 | C24: 0 | D24: 0 | E24: 0 | F24: 0 | G24: 0 | H24: 0 | I24: 0 | J24: 0 | K24: 0 | L24: 0 | M24: 0 | N24: 0
A25: VM71 - közmű | B25: 2089444 | C25: 56426 | D25: 2653364 | E25: 56336 | F25: 369753 | G25: 922824 | H25: 401050 | I25: 298453 | J25: 157487 | K25: 672458 | L25: 937567.2 | M25: 1356350.8 | N25: 9971513
A26: Szántód - közmű | B26: 0 | C26: 0 | D26: 0 | E26: 0 | F26: 0 | G26: 0 | H26: 0 | I26: 0 | J26: 0 | K26: 0 | L26: 0 | M26: 0 | N26: 0
A27: Szántód étkezés | B27: 0 | C27: 0 | D27: 0 | E27: 0 | F27: 0 | G27: 846484 | H27: 2763934 | I27: 2476934 | K27: 0 | N27: 6087352
A28: Mátyás étkezés | B28: 0 | C28: 0 | D28: 0 | E28: 0 | F28: 4955837.65 | G28: 1713064.45 | H28: 688526.95 | I28: 52806.15 | J28: 0 | K28: 0 | N28: 7410235.2
A29: Pannonia öltözőfelújítás elhatárolás | B29: 1664129 | C29: 0 | D29: 0 | E29: 0 | F29: 0 | G29: 0 | H29: 0 | I29: 0 | J29: 0 | K29: 0 | L29: 0 | M29: -664529 | N29: 999600
A30: RG+Tájfutás terembérlet, eseményszervezés | B30: 648032 | C30: 726771 | D30: 863384.94 | E30: 1672860.57 | F30: 893701 | G30: 1664409 | H30: 0 | I30: 579134 | J30: 1003472 | K30: 487401 | N30: 8539165.51
A32: (+) Egyéb árbevételek | B32: 1000646 | C32: 8857347 | D32: 600929.51 | E32: 1167976 | F32: =SUM(F33:F40) -> 2012561 | G32: 3046066 | H32: 942442.21 | I32: 1982255 | J32: 426672.42 | K32: 5161232 | L32: =SUM(L33:L40) -> 1851152 | M32: =SUM(M33:M40) -> 2851152 | N32: 29900431.14
A33: Kézilabda tanfolyamdíjak | B33: 442421 | C33: 911853 | D33: 165117 | E33: 235668 | F33: 1279297 | G33: 310391 | H33: 415945 | I33: 602754 | J33: 498987 | K33: 367555 | L33: 412285 | M33: 412285 | N33: 6054558
A34: RG tagdíj | B34: 94488 | C34: 94488 | D34: 118110.06 | E34: 94488 | F34: 103937 | G34: 103937 | H34: 103937 | I34: 103937 | J34: 103937 | K34: 103937 | L34: 103937 | M34: 103937 | N34: =IF(ISBLANK(B34),"",SUM(B34:M34)) -> 1233070.06
A35: Előzd meg a Fogaskerekűt! Jegybevétel | B35: 0 | C35: 0 | D35: 126247 | E35: 256914 | F35: 27803 | G35: 0 | H35: 0 | I35: 0 | J35: 0 | K35: 0 | L35: 0 | M35: 0 | N35: 410964
A36: Mátyás Waldorf közüzem | B36: 150000 | C36: 150000 | D36: 150000 | E36: 150000 | F36: 150000 | G36: 150000 | H36: 0 | I36: 0 | J36: 0 | K36: 0 | L36: 0 | M36: 0 | N36: 900000 | O36: 9. hótól nem fizetik, mert nem mi tartjuk fent a Mátyás udvart.
A37: Egyéb vállalkozási | B37: 280434 | C37: 10726 | D37: 7216 | E37: 4975 | F37: 418312 | G37: 169725 | H37: 5172 | I37: 56017 | J37: 50997 | K37: 283873 | L37: 115391 | M37: 115391 | N37: 1518229
A38: egyéb árbevétel | B38: 33303 | C38: 30077 | D38: 34239.45 | E38: 425931 | F38: 33212 | G38: 32138 | H38: 33985.21 | I38: 33219 | J38: 32751.42 | K38: 33211 | L38: 33211 | M38: 33211 | N38: 788489.08
A39: sporttámogatás | B39: 0 | C39: 0 | D39: 0 | E39: 0 | F39: 0 | G39: 0 | H39: 383403 | I39: 0 | J39: 0 | K39: 2000000 | M39: 1000000 | N39: 3383403
A40: TAO támogatás | B40: 0 | C40: 7660203 | D40: 0 | E40: 0 | F40: 0 | G40: 2279875 | H40: 0 | I40: 1186328 | J40: -260000 | K40: 2372656 | L40: 1186328 | M40: 1186328 | N40: 15611718
A42: ÉRTÉKESÍTÉS NETTÓ ÁRBEVÉTELE | B42: 24383938 | C42: 21324993 | D42: 18657218.45 | E42: 16145967.57 | F42: =SUM(F6,F17,F19,F21,F23,F32,F12) -> 23522878.98 | G42: 16496648.91 | H42: 14949687.25 | I42: 16395145.78 | J42: 19756923.56 | K42: 22838347.09 | L42: =SUM(L6,L17,L19,L21,L23,L32,L12) -> 20380151.42 | M42: =SUM(M6,M17,M19,M21,M23,M32,M12) -> 15310014.2 | N42: 230161914.2
A45: (+) Kapott támogatás | B45: 47833333 | C45: 47833333 | D45: 50433333 | E45: 50433333 | F45: 50433333 | G45: 60433333 | H45: 50433333 | I45: 50433333 | J45: 47933333 | K45: 47933333 | L45: 47933333 | M45: 47933337 | N45: 600000000
A47: KÖZFELADAT ELLÁTÁSÁHOZ KAPOTT TÁMOGATÁS | B47: 47833333 | C47: 47833333 | D47: 50433333 | E47: 50433333 | F47: =F45 -> 50433333 | G47: 60433333 | H47: 50433333 | I47: 50433333 | J47: 47933333 | K47: 47933333 | L47: 47933333 | M47: =M45 -> 47933337 | N47: 600000000
A49: ÖSSZES BEVÉTEL | B49: 72217271 | C49: 69158326 | D49: 69090551.45 | E49: 66579300.57 | F49: =F42+F47 -> 73956211.98 | G49: 76929981.91 | H49: 65383020.25 | I49: 66828478.78 | J49: 67690256.56 | K49: 70771680.09 | L49: 68313484.42 | M49: 63243351.2 | N49: 830161914.2
A51: (-) Anyagköltségek | B51: -8507281.83 | C51: -10923096.73 | D51: -7448864.49 | E51: -7779791.97 | F51: =SUM(F52:F63) -> -7188984.587 | G51: -8328930.782 | H51: -6710671.144 | I51: -7396126.614 | J51: -10404828.95 | K51: -6879879.542 | L51: =SUM(L52:L63) -> -9221539.419 | M51: =SUM(M52:M60) -> -9463051.533 | N51: -100253047.6
A52: NKM Energia Zrt (gáz) | B52: -4037534.86 | C52: -5919192.77 | D52: -2520511.66 | E52: -1124635.01 | F52: -1061922.379 | G52: -844133.941 | H52: -967771.2876 | I52: -475823.154 | J52: -1082437.992 | K52: -1711637.345 | L52: -3548009.154 | M52: -4865035.18 | N52: =IF(ISBLANK(B52),"",SUM(B52:M52)) -> -28158644.73
A53: CYEB Kft & ELMŰ Kft. (áram) | B53: -2758406.29 | C53: -3084793.68 | D53: -2564244.55 | E53: -2394793.29 | F53: -2485579.512 | G53: -2446934.1 | H53: -2724094.304 | I53: -1779819.056 | J53: -2458500.815 | K53: -2676868.147 | L53: -2938088.625 | M53: -2828078.362 | N53: -31140200.73
A54: Fővárosi Vízművek Zrt. (vízdíj) & Fővárosi Csatornázási Művek Zrt. (csatorna) | B54: -844863.4 | C54: -1316965 | D54: -1221364 | E54: -1420248 | F54: -810540.8 | G54: -2735960.4 | H54: -441457.2 | I54: -1503018 | J54: -3885134.496 | K54: -707620.8 | L54: -660000 | M54: -660000 | N54: -16207172.1
A55: Szemétszállítás | B55: -90650.28 | C55: -84771.28 | D55: -130909.28 | E55: -84771.28 | F55: -101355.744 | G55: -101355.744 | H55: -129641.694 | I55: -135092.244 | J55: -320616.744 | K55: -101355.45 | L55: -101355.45 | M55: -101355.45 | N55: -1483230.64
A56: Irodaszerek | B56: -108080 | C56: -7733 | D56: 0 | E56: -28350 | F56: 0 | G56: 0 | H56: -14616 | I56: 0 | J56: -72021.6 | K56: -11707.5 | L56: -15251.25 | M56: -15251.25 | N56: -273010.6
A57: Sport eszközök | B57: -9441 | C57: 0 | D57: 0 | E57: 0 | F57: -71639.4 | G57: -219810.1975 | H57: 0 | I57: -75343.8 | J57: 0 | K57: -191273.3 | L57: -91486.55 | M57: -71486.55 | N57: -730480.7975
A58: Tisztítószerek, tisztító eszközök, higiéniás eszközök | B58: 0 | C58: 0 | D58: 0 | E58: -996335 | F58: -941348.6824 | G58: -277052.5 | H58: -10861.35 | I58: -467808.12 | J58: -540000 | K58: 0 | L58: -177839.09 | M58: -277839.09 | N58: -3689083.832
A59: Üzemanyag, kenőanyag | B59: -225268 | C59: -210598 | D59: -250378 | E59: -360744 | F59: -418411.4455 | G59: -344867.25 | H59: -417949.35 | I59: -341787.6 | J59: -205419.9 | K59: -366985.5 | L59: -286075.65 | M59: -286075.65 | N59: -3714560.345
A60: uszoda fenntartási anyagok (vegyszerek) | B60: 0 | C60: -195125 | D60: -49500 | E60: -575000 | F60: -192175 | G60: -298355 | H60: -110236 | I60: -952945 | J60: -1286125 | K60: -764741 | L60: -457930 | M60: -357930 | N60: -5240062
A61: reklám- és marketingeszközök | B61: -180874 | C61: -94563 | D61: -27575 | E61: -172534 | F61: -44335.5 | G61: -23478.4 | H61: -63994.7 | I61: -56315.6 | J61: 0 | K61: -36445.2 | L61: -167639.5 | M61: -167639.5 | N61: -1035394.4
A62: táborok anyagköltsége (étkezés, felhasznált eszközök) | B62: 0 | C62: 0 | D62: 0 | E62: 0 | F62: -82103.31 | G62: -144526 | H62: -653771 | I62: -282512.29 | J62: -13209 | K62: 0 | L62: 0 | M62: 0 | N62: -1176121.6
A63: egyéb anyagköltség | B63: -252164 | C63: -9355 | D63: -684382 | E63: -622381.39 | F63: -979572.815 | G63: -892457.25 | H63: -1176278.259 | I63: -1325661.75 | J63: -541363.4 | K63: -311245.3 | L63: -777864.15 | M63: -777864.15 | N63: -8350589.464
A65: (-) Igénybe vett szolgáltatások | B65: -16900808.81 | C65: -18863104.87 | D65: -26880989 | E65: -24670153.13 | F65: =SUM(F66:F90) -> -35586072.8 | G65: -31301130.72 | H65: -26240393.67 | I65: -27762367.63 | J65: -26176797.73 | K65: -24533269.8 | L65: -24642512.04 | M65: =SUM(M66:M90) -> -25023107.04 | N65: =IF(ISBLANK(B65),"",SUM(B65:M65)) -> -308580707.2
A66: őrzés-védés | B66: -1414656 | C66: -1237823 | D66: -1513728 | E66: -1561032 | F66: -1513728 | G66: -1513728 | H66: -1466424 | I66: -1513728 | J66: -1419120 | K66: -1513728 | L66: -1466424 | M66: -1655640 | N66: -17789759
A67: takarítás | B67: -2222508 | C67: -208100 | D67: -2784970 | E67: -3250350 | F67: -3600000 | G67: -3600000 | H67: -3600000 | I67: -3600000 | J67: -2800000 | K67: -2800000 | L67: -2800000 | M67: -2800000 | N67: =IF(ISBLANK(B67),"",SUM(B67:M67)) -> -34065928
A68: taxi, parkolás, autópálya | B68: -261639.01 | C68: -7239 | D68: -7239 | E68: -7239 | F68: -25714 | G68: -6985 | H68: -29969 | I68: -21879 | J68: -6985 | K68: -6985 | L68: -6985 | M68: -6985 | N68: -395843.01
A69: mobiltelefon | B69: -84857.71 | C69: -83850.04 | D69: -110281.34 | E69: -84837.28 | F69: -80912.8 | G69: -80633.47 | H69: -80333.47 | I69: -80618.14 | J69: -80883.55 | K69: -80412.14 | L69: -80412 | M69: -80412 | N69: -1008443.94
A70: Internet előfizetés | B70: -166760.83 | C70: -157414.15 | D70: -161060.48 | E70: -159785.24 | F70: -142853.57 | G70: -141912.62 | H70: -199957.97 | I70: -167208.29 | J70: -153952.63 | K70: -154428.27 | L70: -153953 | M70: -153953 | N70: -1913240.05
A71: Grafika,Nyomda, marketingköltség | B71: -10000 | C71: -10774.68 | D71: -43012.29 | E71: -1215594.61 | F71: -1757762.71 | G71: -394945 | H71: -620719 | I71: -628435.6 | J71: -22208.8 | K71: -411893 | L71: -563530 | M71: -563530 | N71: =IF(ISBLANK(B71),"",SUM(B71:M71)) -> -6242405.69
A72: üzemeltetett ingatlanok bérleti díja | B72: -1250218 | C72: -1265154 | D72: -1265154 | E72: -1352654 | F72: -1265154 | G72: -1265154 | H72: -1265154 | I72: -1265154 | J72: -1265154 | K72: -1265154 | L72: -1265154 | M72: -1265154 | N72: -15254412 | O72: minden hónapból levontam a Mátyás ingatlan díját: 505455 Ft
A73: terembérleti díjak (RG, kézilabda, rendezvények) | B73: -1446644 | C73: -2595831 | D73: -2039901 | E73: -1156906 | F73: -1824307.909 | G73: -511506.4545 | H73: -75160.90909 | I73: -519398.6364 | J73: -1523339.727 | K73: -1757421.273 | L73: -1397727.273 | M73: -1097727.273 | N73: -15945871.45
A74: Pannonia Sacra - öltözőbérlet | B74: -105791 | C74: -105791 | D74: -105791 | E74: -105791 | F74: -105791 | G74: -105791 | H74: -105791 | I74: -105791 | J74: -105791 | K74: -105791 | L74: -105791 | M74: -105791 | N74: -1269492
A75: eszközbérlet / nyomtatók, rendezvények eszközei | B75: -56296 | C75: -51809 | D75: -51067 | E75: -49690 | F75: -63206 | G75: -64243 | H75: -68540 | I75: -159136 | J75: -66786 | K75: -62823 | L75: -62823 | M75: -62823 | N75: -819242
A76: egyéb eszközbérlet (főleg takarítógép) | B76: -6000 | C76: 0 | D76: 0 | E76: -6000 | F76: -10000 | G76: -10000 | H76: -10000 | I76: -10000 | J76: -10000 | K76: -10000 | L76: -10000 | M76: -10000 | N76: -92000
A77: gépjárműbérlet | B77: -192305 | C77: -195226 | D77: -195226 | E77: -195226 | F77: -194252 | G77: -194252 | H77: -194252 | I77: -233525.25 | J77: -201920.25 | K77: -378320.25 | L77: -189157.5 | M77: -609157.5 | N77: -2972819.75
A78: ügyvédi díj | B78: -559980 | C78: -485316 | D78: -447984 | E78: -578646 | F78: -490000 | G78: -490000 | H78: -490000 | I78: -490000 | J78: -490000 | K78: -490000 | L78: -490000 | M78: -490000 | N78: -5991926
A79: könyvvizsgálat | B79: -190500 | C79: -190500 | D79: -190500 | E79: -190500 | F79: -190500 | G79: -190500 | H79: -190500 | I79: -190500 | J79: -190500 | K79: -190500 | L79: -190500 | M79: -190500 | N79: -2286000
A80: könyvelés | B80: -605000 | C80: -605000 | D80: -605000 | E80: -605000 | F80: -605000 | G80: -605000 | H80: -605000 | I80: -605000 | J80: -605000 | K80: -605000 | L80: -605000 | M80: -605000 | N80: -7260000
A81: bérszámfejtés | B81: -162400 | C81: -182000 | D81: -168000 | E81: -226800 | F81: -218400 | G81: -159600 | H81: -218400 | I81: -218400 | J81: -154000 | K81: -193200 | L81: -192080 | M81: -192080 | N81: -2285360
A82: IT support és helpdesk | B82: -269761.88 | C82: -1203680 | D82: -211680 | E82: -211680 | F82: -287039 | G82: -287039 | H82: -287039 | I82: -287039 | J82: -301390.95 | K82: -301390.95 | L82: -301390.95 | M82: -301390.95 | N82: -4250521.68
A83: szoftverek előfizetési díjai (Sherpa, tachográf, stb…) | B83: -740731.78 | C83: -130304 | D83: -237173.92 | E83: -125000 | F83: -302708.3182 | G83: -302708.3182 | H83: -302708.3182 | I83: -302708.3182 | J83: -302708.3182 | K83: -302708.3182 | L83: -302708.3182 | M83: -302708.3182 | N83: -3654876.245
A84: karbantartás, javítás | B84: -280000 | C84: -840000 | D84: -3848894 | E84: -5431196 | F84: -6800000 | G84: -6800000 | H84: -9500000 | I84: -8000000 | J84: -4200000 | K84: -4500000 | L84: -5000000 | M84: -3800000 | N84: -59000090
A85: Reprezentációs költség | B85: -38600 | C85: -26595 | D85: -41905 | E85: -133548 | F85: -165299.99 | G85: -184111 | H85: -643274 | I85: -374371 | J85: -125039 | K85: -179240 | L85: -226742 | M85: -44121 | N85: -2182845.99
A86: tagdíjak, illetékek | B86: -27397 | C86: -45000 | D86: 0 | E86: 0 | F86: 0 | G86: 0 | H86: 0 | I86: 0 | J86: 0 | K86: -25000 | L86: -120000 | M86: -20000 | N86: -237397
A87: rendezvények/események | B87: -190000 | C87: -2340000 | D87: -1479250 | E87: -184600 | F87: -6421990 | G87: -2327010 | H87: -126000 | I87: -126000 | J87: -2661750 | K87: -309435 | L87: -126000 | M87: -1680000 | N87: -17972035
A88: úszásoktatási szolg. | B88: -4818000 | C88: -4847400 | D88: -4965000 | E88: -4398000 | F88: -4876800 | G88: -4876800 | J88: -4876800 | K88: -4876800 | L88: -4876800 | M88: -4876800 | N88: -48289200
A89: diáksport+aktív hegyvidék+RG+tájfutás | B89: -274000 | C89: -344000 | D89: -245200 | E89: -260100 | F89: -385462 | G89: -248600 | H89: -231000 | I89: -213400 | J89: -150000 | K89: -100000 | L89: -100000 | M89: -100000 | N89: -2651762 | O89: 9. hótól csökkentett diáksport
A90: Egyéb igénybe vett szolgáltatások | B90: -1021307.6 | C90: -1198843 | D90: -5657516.97 | E90: -2674523 | F90: -4259191.5 | G90: -6940611.856 | H90: -5930171 | I90: -8650075.4 | J90: -4463468.5 | K90: -3913039.6 | L90: -4009334 | M90: -4009334 | N90: -52727416.43 | O90: szeptembertől nem végezzük el a Mátyás udvar kertészeti feladatait. Ez havi +300 666 Ft
A92: (-) Egyéb szolgáltatások | B92: -2115833.87 | C92: -214945.9 | D92: -417996.5 | E92: -998881.2 | F92: =SUM(F93:F95) -> -182417 | G92: -68487 | H92: -1087102.63 | I92: -382884.83 | J92: -185160.76 | K92: -1010966.36 | L92: =SUM(L93:L95) -> -779841.7 | M92: =SUM(M93:M95) -> -795962.2 | N92: -8240479.95
A93: biztosítási díjak | B93: -1990391 | C93: 0 | D93: -193882 | E93: 0 | F93: 0 | G93: 0 | H93: -353690 | I93: -339348 | J93: 0 | K93: -51781 | L93: -589813.4 | M93: -12054.9 | N93: -3530960.3
A94: pénzügyi szolgáltatások (bankkártyás jutalék) | B94: -121479 | C94: -99844 | D94: -138269 | E94: -121417 | F94: -178917 | G94: -64987 | H94: -9789 | I94: -3481 | J94: -107260 | K94: -134308 | L94: -190028.3 | M94: -55543.4 | N94: -1225322.7
A95: bankköltség | B95: -3963.87 | C95: -115101.9 | D95: -85845.5 | E95: -877464.2 | F95: -3500 | G95: -3500 | H95: -723623.63 | I95: -40055.83 | J95: -77900.76 | K95: -824877.36 | L95: 0 | M95: -728363.9 | N95: -3484196.95
A97: (-) Közvetített szolg költsége (alvállalkozói díjak) | B97: -2918442.52 | C97: -2657890.27 | D97: -2101691.51 | E97: -1734107.42 | F97: =SUM(F98:F104) -> -5850590.65 | G97: -4888833.45 | H97: -3753510.95 | I97: -3578193.15 | J97: -1930469.72 | K97: -1438458 | L97: =SUM(L98:L104) -> -1684567.2 | M97: =SUM(M98:M104) -> -2103350.8 | N97: -34640105.64
A98: szántódi étkezés | B98: 0 | C98: 0 | D98: 0 | E98: 0 | F98: 0 | G98: -846484 | H98: -2763934 | I98: -2476934 | J98: 0 | K98: 0 | L98: 0 | M98: 0 | N98: -6087352
A99: Mátyás étkezés | B99: 0 | C99: 0 | D99: 0 | E99: 0 | F99: -4955837.65 | G99: -1713064.45 | H99: -688526.95 | I99: -52806.15 | N99: -7410235.2
A100: Szántód közmű | B100: 0 | C100: 0 | D100: 0 | E100: 0 | F100: 0 | G100: 0 | H100: 0 | I100: 0 | J100: 0 | K100: 0 | N100: 0
A101: VM71 - közmű | B101: -2089442.53 | C101: -1740890.27 | D101: -975193.51 | E101: -184987.42 | F101: -269753 | G101: -922824 | H101: -301050 | I101: -298453 | J101: -157487 | K101: -472458 | L101: -837567.2 | M101: -1256350.8 | N101: -9506456.73
A102: Mátyás - közmű | B102: 0 | C102: 0 | D102: 0 | E102: 0 | F102: 0 | G102: 0 | H102: 0 | I102: 0 | J102: 0 | K102: 0 | N102: 0
A103: RG, tájfutás nevezési díjak, szövetségi regisztráció, eseményszervezés | B103: -155999.99 | C103: -310000 | D103: -285498 | E103: -935120 | F103: 0 | G103: -781461 | H103: 0 | I103: 0 | J103: -1022982.72 | K103: -341000 | L103: -222000 | M103: -222000 | N103: -4276061.71
A104: RG terembérleti díjak | B104: -673000 | C104: -607000 | D104: -841000 | E104: -614000 | F104: -625000 | G104: -625000 | H104: 0 | I104: -750000 | J104: -750000 | K104: -625000 | L104: -625000 | M104: -625000 | N104: -7360000
A106: (-) Személyi jellegű ráfordítások | B106: -21148147 | C106: -21618076 | D106: -30676488 | E106: -20987309 | F106: =SUM(F107:F115) -> -24838076.13 | G106: -19265939.17 | H106: -21092944.77 | I106: -21010669.06 | J106: -21518233.14 | K106: -19716322.83 | L106: =SUM(L107:L115) -> -33145002.16 | M106: =SUM(M107:M115) -> -19050277 | N106: -274067484.3
A107: munkavállalók bérköltsége | B107: -16658180 | C107: -15327628 | D107: -14498402 | E107: -14340679 | F107: -14498404 | G107: -14498404 | H107: -14498404 | I107: -14498404 | J107: -14498404 | K107: -14498404 | L107: =1.8*M107 -> -26097127.2 | M107: -14498404 | N107: =IF(ISBLANK(B107),"",SUM(B107:M107)) -> -188410844.2
A108: rendezvényeken foglalkoztatottak | B108: 0 | C108: -120000 | D108: 0 | E108: -193800 | F108: -170880 | G108: 0 | H108: -60000 | I108: -247435 | J108: -81987 | K108: -134300 | L108: 0 | M108: -20000 | N108: -1028402
A109: edzők, oktatók, gondnokok bére | B109: -1843405 | C109: -1958044 | D109: -2108910 | E109: -2208413 | F109: -1759993.2 | G109: -1887277.2 | H109: -1983682.8 | I109: -1079626 | J109: -1664442.4 | K109: -2094631.2 | L109: -2365951.2 | M109: -1731754.8 | N109: -22686130.8
A110: Mátyás tábori bérek (EFO+megbízási) | B110: 0 | C110: 0 | D110: 0 | E110: 0 | F110: 0 | G110: 0 | H110: -1543700 | I110: -2118503 | J110: -192427 | K110: 0 | N110: -3854630
A111: Szántódi tábori bérek (EFO) | B111: 0 | C111: 0 | D111: 0 | E111: 0 | H111: 0 | N111: 0
A112: FEB megbízási díja | B112: -280000 | C112: -280000 | D112: -280000 | E112: -280000 | F112: -280000 | G112: -280000 | H112: -280000 | I112: -280000 | J112: -280000 | K112: -280000 | L112: -280000 | M112: -280000 | N112: -3360000
A113: járulékok | B113: -2064095 | C113: -2342384 | D113: -4360905 | E113: -1966172 | F113: -2409770.935 | G113: -2370996.671 | H113: -2597561.967 | I113: -2626971.061 | J113: -2678277.745 | K113: -2423020.228 | L113: =1.8*M113 -> -4225064.758 | M113: -2347258.199 | N113: -32412477.56
A114: egyéb bérköltség (nyeremények, utazási ktg., egyéb térítések) | B114: -104671 | C114: -125380 | D114: -92860 | E114: -182145 | F114: -435600 | G114: -179744 | H114: -111262 | I114: -159730 | J114: -133725 | K114: -132208 | L114: -172860 | M114: -172860 | N114: -2003045
A115: cafetéria és egyéb természetbeni juttatások | B115: -197796 | C115: -1464640 | D115: -9335411 | E115: -1816100 | F115: -5283428 | G115: -49517.3 | H115: -18334 | I115: 0 | J115: -1988970 | K115: -153759.4 | L115: -3999 | M115: 0 | N115: -20311954.7
A117: (-) Értékcsökkenési leírás | B117: -1059120 | C117: -1022854 | D117: -1006357 | E117: -1565626 | F117: -1223897.85 | G117: -1007180.055 | H117: -2022923.7 | I117: -1360272.69 | J117: -904119.3 | K117: -964951.785 | L117: -1224282.465 | M117: -1224282.465 | N117: -14585867.31
A119: (-) Egyéb ráfordítások | B119: -6003677.52 | C119: -5322298.63 | D119: -110491.06 | E119: -7123411.35 | F119: =SUM(F120:F123) -> -8495014.016 | G119: -8320424.459 | H119: -6576763.04 | I119: -6806827.568 | J119: -7334338.745 | K119: -8889000.134 | L119: =SUM(L120:L123) -> -6721152.103 | M119: =SUM(M120:M123) -> -17805072.05 | N119: -89508470.68
A120: Bírságok, kötbérek | B120: 0 | C120: 0 | D120: 0 | E120: 0 | F120: -2367 | G120: 10000 | H120: -1000 | I120: 0 | J120: -28797 | N120: -22164
A121: Adók, illetékek | B121: 0 | C121: 0 | D121: -1186678 | E121: 0 | F121: 0 | G121: -572205 | H121: 0 | I121: 0 | J121: -572205 | K121: 0 | L121: 0 | M121: -3700000 | N121: -6031088 | O121: 25 fő fölé emelkedett a létszámunk novemberben, így fizetnünk kell rehabilitációs adót
A122: egyéb és rendkívüli | B122: -247008 | C122: -3 | D122: -14 | E122: -20 | F122: -43.7 | G122: -15 | H122: -11 | I122: -22 | J122: -14 | K122: -2996912.31 | L122: -400000 | N122: -3644063.01
A123: ÁFA | B123: -5756669.52 | C123: -5322295.63 | D123: 1076200.94 | E123: -7123391.35 | F123: =0.174*SUM(F97,F92,F65,F51) -> -8492603.316 | G123: -7758204.459 | H123: -6575752.04 | I123: -6806805.568 | J123: -6733322.745 | K123: -5892087.824 | L123: -6321152.103 | M123: =0.174*SUM(M97,M92,M65,M51)-7600000 -> -14105072.05 | N123: -79811155.67
A125: ÖSSZES KÖLTSÉG | B125: -58653311.55 | C125: -60622266.4 | D125: -68642877.56 | E125: -64859280.07 | F125: =SUM(F51,F65,F92,F97,F106,F117,F119) -> -83365053.04 | G125: -73180925.64 | H125: -67484309.9 | I125: -68297341.55 | J125: -68453948.34 | K125: -63432848.45 | L125: -77418897.09 | M125: -75465103.09 | N125: -829876162.7
A128: NETTÓ EREDMÉNY | B128: 13563959.45 | C128: 8536059.6 | D128: 447673.89 | E128: 1720020.5 | F128: =F49+F125 -> -9408841.059 | G128: 3749056.274 | H128: -2101289.649 | I128: -1468862.767 | J128: -763691.7856 | K128: 7338831.642 | L128: -9105412.668 | M128: -12221751.89 | N128: 285751.5361
A130: valós
